bitfinex/quotes_ETHUSD_20240729
["timestamp","ask_amount","ask_price","bid_price","bid_amount"]
[1722264528772,0.06995214,3327.7,3327.2,3.00552]
[1722264528993,0.06995214,3327.9,3326.6,0.300615]
[1722264529157,0.06995214,3327.9,3327.4,3.00533]
[1722264529706,0.06995214,3327.9,3327.3,3.00536]
[1722264529854,3.0,3328.6,3327.1,3.00553]
[1722264529855,0.06995214,3328.1,3327.1,3.00553]
[1722264530065,0.55,3328.0,3326.7,3.00596]
[1722264530358,0.06995214,3327.9,3326.7,3.00597]
[1722264530701,3.00546,3327.3,3326.6,0.300615]
[1722264531021,3.07555214,3327.2,3326.2,3.0]
[1722264531286,3.07555214,3327.2,3326.2,6.00642]
[1722264531287,3.00583,3326.9,3326.2,6.00642]
[1722264531586,3.0,3327.7,3326.2,3.0]
[1722264531587,0.06995214,3326.8,3326.2,3.0]
[1722264531739,0.61995214,3327.6,3326.3,0.61533571]
[1722264531946,0.06995214,3327.6,3326.3,0.61533571]
[1722264532356,3.00634,3326.3,3326.1,0.1468371]
[1722264532515,3.07638214,3326.2,3326.1,0.1468371]
[1722264532670,0.06995214,3326.2,3326.1,0.1468371]
[1722264532866,3.0,3326.8,3326.1,0.1468371]
[1722264532867,6.00589,3326.8,3326.1,0.1468371]
[1722264533178,0.06995214,3326.7,3326.1,0.1468371]
[1722264533379,3.00617,3326.5,3326.1,0.1468371]
[1722264533617,0.90116,3326.8,3326.1,0.1468371]
[1722264533618,3.07627214,3326.4,3326.1,0.1468371]
[1722264533795,0.06995214,3326.4,3326.1,0.1468371]
[1722264534313,9.01929,3326.2,3326.1,0.1468371]
[1722264534482,10.77802421,3326.2,3326.1,0.1468371]
[1722264534678,13.77802421,3326.2,3326.1,0.1468371]
[1722264534912,10.77159421,3326.2,3326.1,0.1468371]
[1722264538022,0.06995214,3328.0,3327.0,0.30057]
[1722264538307,0.06995214,3328.0,3326.1,0.14985107]
[1722264538517,0.06995214,3328.0,3326.6,3.00599]
[1722264538518,3.00509,3327.7,3326.6,3.00599]
[1722264538673,0.06995214,3327.6,3326.3,3.9]
[1722264538871,3.00453,3328.3,3327.2,3.00548]
[1722264539138,3.00453,3328.3,3326.4,3.51730854]
[1722264539139,0.06995214,3328.2,3327.3,3.00538]
[1722264539428,0.06995214,3328.2,3327.6,3.00509]
[1722264539592,3.9,3329.2,3326.9,3.00579]
[1722264539593,0.06995214,3328.9,3328.3,3.00449]
[1722264539769,0.06995214,3328.9,3327.3,5.84]
[1722264539770,3.00355,3329.4,3327.4,7.29]
[1722264539969,0.06995214,3329.5,3328.4,3.00441]
[1722264539970,0.06995214,3329.3,3328.4,3.00441]
[1722264540216,0.06995214,3329.2,3328.3,3.00453]
[1722264540421,0.06995214,3329.2,3328.6,3.00418]
[1722264540583,2.3707,3329.7,3328.1,2.2838]
[1722264540584,0.06995214,3329.5,3328.1,2.2838]
[1722264540909,0.06995214,3329.5,3328.6,3.00426]
[1722264541083,0.06995214,3329.5,3328.4,3.00444]
[1722264541283,3.00392,3329.0,3327.7,3.00498]
[1722264541619,2.3707,3329.7,3327.5,4.313]
[1722264541620,0.06995214,3328.9,3327.5,4.313]
[1722264541805,0.06995214,3329.6,3327.7,3.06509999]
[1722264542008,3.00352,3329.5,3328.1,3.0047]
[1722264542186,3.00374,3329.2,3328.2,0.30047]
[1722264542374,3.00408,3328.8,3327.6,0.431824]
[1722264542580,0.06995214,3328.7,3327.5,3.0]
[1722264542883,0.55,3329.4,3327.5,3.0]
[1722264543223,0.24406521,3329.5,3327.5,3.0]
[1722264543224,0.06995214,3329.3,3328.4,3.00435]
[1722264543373,0.06995214,3329.2,3327.9,0.06008706]
[1722264543575,0.06995214,3329.2,3328.6,3.00418]
[1722264543805,3.00282,3330.2,3328.7,0.06008334]
[1722264544009,3.00282,3330.2,3329.3,3.00362]
[1722264544225,3.00304,3330.0,3329.1,3.00377]
[1722264544429,3.00318,3329.8,3328.7,3.00417]
[1722264544572,3.00352,3329.5,3327.8,6.2612]
[1722264544775,0.06995214,3329.4,3327.9,3.00481]
[1722264545005,0.06995214,3329.4,3327.6,6.0]
[1722264545006,3.00382,3329.1,3328.0,3.00479]
[1722264545339,2.4674,3329.3,3327.6,3.0]
[1722264545340,0.06995214,3329.0,3327.6,3.0]
[1722264545542,0.06995214,3329.0,3327.8,6.90496]
[1722264545768,3.00337,3329.6,3327.8,6.90496]
[1722264545769,2.984695,3329.9,3328.2,2.3364]
[1722264546061,3.9,3329.2,3327.6,3.0]
[1722264546235,3.00481,3328.0,3327.3,1.94]
[1722264546416,3.00481,3328.0,3327.1,3.0056]
[1722264546417,0.06995214,3327.9,3327.4,3.00534]
[1722264546750,0.06995214,3328.3,3327.4,3.00533]
[1722264546918,0.06995214,3328.3,3327.0,2.3364]
[1722264546919,0.06995214,3328.2,3327.0,2.3364]
[1722264547306,3.0,3328.7,3327.1,0.06010089]
[1722264547511,0.06995214,3328.6,3327.8,3.00495]
[1722264547854,0.06995214,3328.9,3328.1,3.00463]
[1722264548003,0.008,3329.0,3328.0,3.00479]
[1722264548208,0.07795214,3329.0,3328.0,0.30648824]
[1722264548459,0.008,3329.0,3328.1,3.00464]
[1722264548766,0.07795214,3329.0,3328.0,0.36657828]
[1722264548914,3.00436,3328.5,3327.4,3.00527]
[1722264549113,0.06995214,3328.4,3327.0,2.3364]
[1722264549334,0.06995214,3328.4,3327.1,3.00558]
[1722264549335,3.00482,3328.0,3327.1,3.00558]
[1722264549545,3.156,3328.9,3327.3,3.00539]
[1722264549546,0.06995214,3327.9,3327.3,3.00539]
[1722264549749,0.06995214,3328.1,3327.0,2.3364]
[1722264549907,0.008,3329.0,3327.0,2.3364]
[1722264549908,3.004,3328.9,3327.2,6.90544]
[1722264550108,3.07795214,3329.0,3327.2,6.90544]
[1722264550109,3.07404214,3328.8,3327.5,3.00523]
[1722264550309,3.07404214,3328.8,3327.2,3.9]
[1722264550310,3.06995214,3328.7,3327.2,3.9]
[1722264550507,0.06995214,3328.7,3327.2,3.00544]
[1722264550755,2.3421,3328.3,3327.0,3.00569]
[1722264550978,2.3421,3328.3,3325.6,15.12691]
[1722264550979,3.00488,3328.0,3326.3,3.0063]
[1722264551282,3.00562,3327.1,3326.1,0.14985107]
[1722264551441,3.07569214,3327.0,3326.1,0.14985107]
[1722264551629,0.06995214,3327.0,3326.1,3.47197518]
[1722264551830,0.06995214,3327.0,3326.1,0.46550751]
[1722264552143,0.06995214,3327.0,3326.1,0.14985341]
[1722264552365,3.00605,3326.7,3326.1,0.14985342]
[1722264552667,3.00623,3326.5,3326.1,0.14985342]
[1722264552869,0.06995214,3326.4,3326.1,0.14985342]
[1722264553178,3.00605,3326.7,3326.1,0.14985342]
[1722264553333,0.06995214,3326.6,3326.1,3.15633342]
[1722264553534,0.06995214,3327.1,3326.1,0.46548678]
[1722264553738,3.00526,3327.5,3326.5,3.00615]
[1722264554029,3.00458,3328.3,3327.2,3.00545]
[1722264554030,3.00456,3328.3,3327.2,3.00545]
[1722264554228,0.30699521,3328.6,3327.2,6.90846643]
[1722264554229,2.4364,3328.4,3327.2,6.90846643]
[1722264554432,2.4364,3328.4,3327.2,3.90301648]
[1722264554732,7.31,3329.4,3327.7,3.00504]
[1722264554733,0.06995214,3328.5,3327.7,3.00504]
[1722264554934,3.00373,3329.2,3327.8,3.06498438]
[1722264555134,6.90323,3329.8,3328.4,3.00442]
[1722264555135,1.11062858,3329.1,3328.4,3.00442]
[1722264555363,0.06995214,3329.0,3328.4,0.0030166]
[1722264555572,3.00355,3329.4,3328.4,0.0030166]
[1722264555753,9.5762,3330.1,3328.6,3.00425]
[1722264555754,0.06995214,3329.3,3328.6,3.00425]
[1722264555963,3.603705,3329.9,3328.6,3.00425]
[1722264555964,3.756595,3329.9,3328.6,0.00301661]
[1722264556289,3.00417,3328.7,3328.6,0.00301662]
[1722264556446,9.08246214,3328.7,3328.6,0.00301662]
[1722264556649,13.27896436,3328.7,3328.6,0.00301662]
[1722264556845,16.28313436,3328.7,3328.6,0.00301662]
[1722264557046,18.63313436,3328.7,3328.6,0.00301662]
[1722264557276,3.00528,3327.5,3326.1,0.1468371]
[1722264557512,0.06995214,3327.4,3326.5,3.00611]
[1722264557775,3.00542,3327.4,3326.1,3.1533571]
[1722264557973,3.06995214,3328.0,3326.6,3.00599]
[1722264557974,0.06995214,3327.3,3326.6,3.00599]
[1722264558196,7.65819344,3328.7,3326.3,3.0063]
[1722264558197,3.00536,3327.4,3326.3,3.0063]
[1722264558348,3.0,3328.6,3326.7,3.00591]
[1722264558349,0.06995214,3327.3,3326.7,3.00591]
[1722264558558,3.00446,3328.4,3326.4,0.0601217]
[1722264558870,3.00446,3328.4,3327.5,3.00524]
[1722264559181,3.07455214,3328.3,3326.9,3.0]
[1722264559383,7.31,3329.1,3327.0,0.3]
[1722264559384,0.06995214,3328.2,3327.0,0.3]
[1722264559550,3.00472,3328.1,3326.7,2.3998]
[1722264559748,3.00427,3328.6,3326.8,0.61010675]
[1722264559951,3.00409,3328.8,3327.8,3.00496]
[1722264560146,0.01,3328.0,3327.6,0.06009697]
[1722264560358,0.01,3328.0,3326.9,7.29]
[1722264560359,0.01,3328.0,3327.1,3.060097]
[1722264560565,0.01,3328.0,3327.2,0.3060097]
[1722264560777,0.01,3328.0,3327.4,3.00533]
[1722264561137,0.01,3328.0,3327.2,0.36611393]
[1722264561355,3.00519,3327.6,3326.9,7.29]
[1722264561602,0.06995214,3327.5,3326.1,0.1468371]
[1722264561761,3.00563,3327.1,3326.1,0.1468371]
[1722264561959,3.00617,3326.5,3326.1,0.1468371]
[1722264562270,0.06995214,3327.0,3326.1,0.1468371]
[1722264562271,0.06995214,3326.4,3326.1,0.1468371]
[1722264562582,3.07623214,3326.4,3326.1,0.1468371]
[1722264562786,5.4338,3326.8,3326.1,0.1468371]
[1722264563096,3.00541,3327.4,3326.1,0.1468371]
[1722264563097,0.06995214,3326.7,3326.1,0.1468371]
[1722264563512,3.00596,3326.8,3326.1,0.1468371]
[1722264563813,3.00614,3326.6,3326.1,0.1468371]
[1722264563972,0.06995214,3326.7,3326.1,0.1468371]
[1722264564159,3.0,3327.3,3326.1,0.1468371]
[1722264564160,0.06995214,3326.9,3326.1,0.1468371]
[1722264564360,3.0,3327.3,3326.1,0.1468371]
[1722264564704,3.0,3327.3,3326.4,3.0062]
[1722264564858,3.00564,3327.1,3326.2,3.06652919]
[1722264565065,3.00504,3327.8,3326.1,0.1468371]
[1722264565066,3.00588,3326.9,3326.1,0.1468371]
[1722264565264,3.00606,3326.7,3326.1,0.1468371]
[1722264565491,0.06995214,3326.6,3326.1,0.1468371]
[1722264565658,3.0,3327.5,3326.1,0.1468371]
[1722264565659,3.00618,3326.5,3326.1,0.1468371]
[1722264565863,3.0,3327.5,3326.1,0.1468371]
[1722264565864,0.06995214,3326.7,3326.1,0.1468371]
[1722264566315,0.06995214,3326.8,3326.1,0.1468371]
[1722264566622,0.008,3327.0,3326.1,0.1468371]
[1722264566623,0.06995214,3326.7,3326.1,0.1468371]
[1722264566767,3.00637,3326.3,3326.1,0.1468371]
[1722264566965,3.006,3326.7,3326.1,0.1468371]
[1722264567194,3.00625,3326.4,3326.1,0.1468371]
[1722264567514,3.06995214,3326.6,3326.1,0.1468371]
[1722264567515,3.0,3326.6,3326.1,0.1468371]
[1722264567724,0.06995214,3326.5,3326.1,0.1468371]
[1722264567864,3.00581,3326.9,3326.1,0.1468371]
[1722264567865,3.00598,3326.7,3326.1,0.1468371]
[1722264568215,0.008,3327.0,3326.2,3.06654087]
[1722264568412,0.008,3327.0,3326.1,0.46218981]
[1722264568625,3.00643,3326.2,3326.1,0.1468371]
[1722264569063,3.00626,3326.4,3326.1,0.1468371]
[1722264569266,0.06995214,3326.3,3326.1,0.1468371]
[1722264569605,0.06995214,3326.5,3326.1,0.1468371]
[1722264569927,2.4343,3327.3,3326.1,0.1468371]
[1722264569928,3.00569,3327.1,3326.1,0.1468371]
[1722264570130,0.22809,3327.9,3326.8,3.0058]
[1722264570131,3.00493,3327.9,3326.8,3.0058]
[1722264570416,3.00493,3327.9,3326.9,6.31218]
[1722264570717,3.00483,3328.0,3326.9,6.31218]
[1722264570921,7.31,3328.1,3326.9,6.31218]
[1722264571088,7.31,3328.1,3326.9,9.86798]
[1722264571305,3.00419,3328.7,3326.9,9.86798]
[1722264571599,3.00435,3328.5,3326.9,9.86798]
[1722264571908,0.06995214,3328.4,3327.6,3.00515]
[1722264572081,3.00455,3328.3,3327.7,0.300515]
[1722264572282,0.06995214,3328.4,3327.4,3.00531]
[1722264572485,3.00463,3328.2,3326.9,0.30058]
[1722264572683,1.11088671,3328.1,3327.2,3.00547]
[1722264572999,1.11088671,3328.1,3327.0,3.06579021]
[1722264573000,0.06995214,3328.2,3327.3,0.0601044]
[1722264573200,0.06995214,3328.2,3327.1,3.00554]
[1722264573398,0.06995214,3328.2,3327.2,3.00544]
[1722264573399,3.07460214,3328.2,3327.2,3.00544]
[1722264573608,0.06995214,3328.1,3327.3,3.305944]
[1722264573808,3.0,3328.4,3327.4,0.06009861]
[1722264574011,3.00444,3328.5,3327.4,0.06009861]
[1722264574012,0.06995214,3328.3,3327.4,0.06009861]
[1722264574231,0.06995214,3328.3,3327.6,3.00515]
[1722264575058,3.00444,3328.4,3327.6,0.06009855]
[1722264575059,0.06995214,3328.4,3327.6,0.06009855]
[1722264575190,3.01394,3329.0,3328.0,3.00478]
[1722264575388,1.04063766,3328.9,3328.1,3.305188]
[1722264575744,3.01394,3329.0,3328.1,3.305188]
[1722264575745,0.01,3329.0,3328.1,0.36056751]
[1722264575885,0.01,3329.0,3328.4,3.00438]
[1722264576088,0.01,3329.0,3328.6,3.0042]
[1722264576403,0.01,3329.0,3328.0,3.00476]
[1722264576404,0.01,3329.0,3328.7,3.06425209]
[1722264576735,0.01,3329.0,3328.9,3.00399]
[1722264576887,0.01,3329.0,3328.9,3.61080472]
[1722264577087,0.01,3329.0,3328.9,6.67486654]
[1722264577439,0.01,3329.0,3328.9,0.60681472]
[1722264577588,0.01,3329.0,3328.9,0.55]
[1722264577792,2.92370378,3329.8,3328.9,3.61406005]
[1722264577990,3.00292,3330.1,3328.9,0.61007005]
[1722264578187,9.5759,3330.4,3329.2,3.0037]
[1722264578188,1.04030552,3330.0,3329.2,3.0037]
[1722264578392,9.5759,3330.4,3329.0,0.06006999]
[1722264578393,9.5759,3330.4,3329.6,3.00334]
[1722264578690,3.00249,3330.6,3329.6,0.06006095]
[1722264579028,1.04015748,3330.5,3329.3,0.30037]
[1722264579241,3.00309,3329.9,3329.3,0.30037]
[1722264579539,3.00283,3330.2,3328.9,0.55]
[1722264579540,3.00282,3330.2,3329.2,3.00372]
[1722264579693,3.00293,3330.1,3329.3,3.063686]
[1722264579894,3.003,3330.0,3328.9,3.55397]
[1722264580129,3.003,3330.0,3328.6,5.4539]
[1722264580130,3.0028,3330.3,3329.3,3.00354]
[1722264580458,3.00258,3330.5,3329.4,0.61006112]
[1722264580782,3.00279,3330.3,3329.4,3.61359112]
[1722264580989,3.00258,3330.5,3329.4,0.61006112]
[1722264581130,3.00258,3330.5,3329.6,3.0033]
[1722264581131,3.00264,3330.4,3329.6,3.0033]
[1722264581327,0.600498,3330.5,3329.6,0.06006035]
[1722264581552,3.55895,3330.9,3329.0,0.355397]
[1722264581553,3.00313,3329.9,3329.0,0.355397]
[1722264581869,3.171,3330.8,3329.0,0.355397]
[1722264582076,3.171,3330.8,3328.7,7.29]
[1722264582077,3.00362,3329.4,3328.7,7.29]
[1722264582220,3.00362,3329.4,3328.4,6.00443]
[1722264582221,3.00373,3329.2,3328.4,6.00443]
[1722264582426,3.00343,3329.6,3328.4,4.394902]
[1722264582621,2.329,3329.9,3328.4,3.0]
[1722264582622,3.00369,3329.3,3328.4,3.0]
[1722264582863,3.00365,3329.3,3328.5,3.00429]
[1722264583064,3.0,3329.8,3328.7,3.00415]
[1722264583223,3.00333,3329.7,3328.8,3.00408]
[1722264583428,0.5341,3329.8,3328.8,3.00408]
[1722264583429,6.00337,3329.6,3328.8,3.00408]
[1722264583662,3.00346,3329.5,3328.7,0.30642311]
[1722264583970,3.00352,3329.5,3328.7,0.30642311]
[1722264584151,0.5341,3329.8,3328.8,0.06007589]
[1722264584326,0.5341,3329.8,3328.9,3.00397]
[1722264584528,3.00319,3329.8,3328.9,3.66484122]
[1722264584763,3.00319,3329.8,3329.0,3.00389]
[1722264584962,3.00316,3329.9,3329.0,3.00389]
[1722264585175,3.00316,3329.9,3328.9,0.66087122]
[1722264585176,3.01502,3330.0,3329.1,3.06388218]
[1722264585475,3.00309,3329.9,3329.2,3.00369]
[1722264585778,0.301509,3329.9,3329.1,0.06007218]
[1722264585940,3.00312,3329.9,3329.0,0.06007515]
[1722264586144,3.00329,3329.7,3329.0,3.06390515]
[1722264586546,3.00341,3329.6,3329.0,0.06007515]
[1722264586866,0.012,3330.0,3328.5,3.0]
[1722264586867,3.00352,3329.5,3328.5,3.0]
[1722264587028,3.00352,3329.5,3328.7,3.00409]
[1722264587229,3.00352,3329.5,3328.8,3.00406]
[1722264587478,3.0034,3329.6,3328.9,0.61007527]
[1722264587765,3.00319,3329.8,3329.0,3.0638908]
[1722264587981,0.012,3330.0,3329.2,3.00366]
[1722264588178,3.00331,3329.7,3329.2,0.06006809]
[1722264588477,3.00331,3329.7,3328.7,3.0041]
[1722264588641,3.0033,3329.7,3328.8,0.90541]
[1722264588857,3.00337,3329.6,3328.8,0.55]
[1722264589141,3.0,3330.3,3328.7,3.55]
[1722264589342,3.00323,3329.8,3328.9,3.00393]
[1722264589545,3.00312,3329.9,3328.8,3.00405]
[1722264589735,3.00327,3329.7,3328.9,0.55]
[1722264590069,3.00312,3329.9,3329.1,3.0038]
[1722264590456,3.00323,3329.8,3329.0,0.355405]
[1722264590657,3.00307,3330.0,3329.2,3.00365]
[1722264590863,3.00277,3330.3,3328.9,0.55]
[1722264590864,3.00296,3330.1,3329.3,0.06006591]
[1722264591035,3.00273,3330.3,3329.3,3.06369591]
[1722264591242,3.00265,3330.4,3329.6,3.00335]
[1722264591547,3.0,3330.7,3329.9,3.00305]
[1722264591548,3.00245,3330.7,3329.9,3.00305]
[1722264591986,3.00234,3330.8,3329.9,6.00605]
[1722264592190,0.012,3331.0,3330.0,0.06005718]
[1722264592337,0.012,3331.0,3330.2,3.00282]
[1722264592338,3.01415,3331.0,3330.2,3.00282]
[1722264592536,3.01415,3331.0,3330.1,0.06005]
[1722264592537,3.0022,3330.9,3330.1,0.06005]
[1722264592775,3.00236,3330.8,3330.1,0.06005]
[1722264592971,3.01411,3331.0,3330.2,3.309118]
[1722264593187,3.01411,3331.0,3330.2,3.309038]
[1722264593336,3.01411,3331.0,3330.4,3.00262]
[1722264593337,0.012,3331.0,3330.4,3.00262]
[1722264593537,0.012,3331.0,3330.5,0.61004458]
[1722264593733,0.012,3331.0,3330.7,3.00228]
[1722264593978,0.012,3331.0,3330.9,3.00219]
[1722264594188,0.012,3331.0,3330.9,3.55219]
[1722264594835,3.00132,3331.9,3330.9,0.61003287]
[1722264595208,3.00132,3331.9,3331.0,3.55208]
[1722264595371,3.00132,3331.9,3331.1,0.06003284]
[1722264595689,6.00269,3331.9,3331.1,3.42324412]
[1722264596036,3.00138,3331.8,3331.2,0.55]
[1722264596369,3.00122,3332.0,3331.2,0.55]
[1722264596562,3.00103,3332.2,3331.2,0.55]
[1722264596563,3.00103,3332.2,3331.3,0.06002759]
[1722264596749,6.00111,3332.1,3331.2,3.55184]
[1722264596939,3.0012,3332.0,3331.3,0.886]
[1722264597144,3.0,3332.1,3331.3,0.886]
[1722264597364,7.31,3332.6,3330.5,3.0]
[1722264597365,3.0,3332.4,3330.5,3.0]
[1722264597576,3.0,3332.4,3330.3,1.94]
[1722264597577,3.171,3332.2,3330.4,3.0]
[1722264597741,3.00233,3330.8,3330.4,3.0]
[1722264597938,3.00233,3330.8,3329.9,3.00307]
[1722264598142,3.00205,3331.1,3330.1,3.0029]
[1722264598362,3.00186,3331.3,3330.0,0.300307]
[1722264598576,6.00339,3331.5,3330.6,3.00246]
[1722264598743,3.00168,3331.5,3329.7,11.213]
[1722264598941,3.00168,3331.5,3329.8,3.00318]
[1722264599177,3.0015,3331.7,3330.8,3.00226]
[1722264599376,3.0015,3331.7,3330.9,3.00213]
[1722264599377,3.00149,3331.7,3330.9,3.00213]
[1722264599577,12.19,3332.9,3330.9,5.45765]
[1722264599578,2.3275,3332.5,3330.9,5.45765]
[1722264599739,3.0013,3331.9,3331.1,3.00193]
[1722264599943,3.00111,3332.1,3331.1,3.00193]
[1722264599944,3.00111,3332.1,3331.3,3.00182]
[1722264600218,3.00096,3332.3,3331.3,3.06184904]
[1722264600343,3.00096,3332.3,3331.5,3.00159]
[1722264600538,2.485,3333.0,3331.0,1.095765]
[1722264600539,3.00134,3331.9,3331.0,0.545765]
[1722264600743,3.00129,3331.9,3331.1,3.6022875]
[1722264601109,3.00138,3331.8,3331.2,0.55]
[1722264601243,0.01,3332.0,3331.2,0.55]
[1722264601244,3.00129,3331.9,3331.2,0.55]
[1722264601458,3.01126,3332.0,3331.2,0.55]
[1722264601459,0.01,3332.0,3331.3,0.41522875]
[1722264601776,0.01,3332.0,3331.5,3.00162]
[1722264601952,0.01,3332.0,3331.6,3.06157513]
[1722264602155,0.01,3332.0,3331.5,3.00159]
[1722264602404,0.01,3332.0,3331.5,3.06166534]
[1722264602591,0.01,3332.0,3331.9,3.00129]
[1722264602756,0.01,3332.0,3331.9,3.06130685]
[1722264602954,0.01,3332.0,3331.9,0.55]
[1722264603255,3.00162,3331.6,3330.7,7.29]
[1722264603457,3.01123,3332.0,3330.7,7.29]
[1722264603458,0.01,3332.0,3330.8,1.02924]
[1722264603696,3.00136,3331.9,3330.9,3.0021]
[1722264603879,3.00136,3331.9,3331.0,3.00203]
[1722264604053,3.01127,3332.0,3330.9,3.0021]
[1722264604054,0.01,3332.0,3330.9,3.00212]
[1722264604254,0.01,3332.0,3331.1,3.00195]
[1722264604255,3.00139,3331.8,3331.1,3.00195]
[1722264604570,0.01,3332.0,3331.2,3.302105]
[1722264604771,0.01,3332.0,3331.2,0.300195]
[1722264604985,3.00148,3331.7,3331.2,0.300195]
[1722264605170,3.00137,3331.9,3331.2,0.300195]
[1722264605388,3.01121,3332.0,3331.2,0.300195]
[1722264605560,3.01121,3332.0,3331.2,3.00185]
[1722264605755,0.01,3332.0,3331.3,3.00177]
[1722264605967,0.01,3332.0,3330.6,3.0024]
[1722264606165,0.01,3332.0,3330.5,9.218]
[1722264606166,6.00294,3331.7,3331.6,0.5]
[1722264606600,7.04277976,3331.7,3331.6,0.5]
[1722264606756,7.04275841,3331.7,3331.6,0.5]
[1722264606952,10.00881784,3331.7,3331.6,0.5]
[1722264607209,11.04862061,3331.7,3331.6,0.5]
[1722264607508,14.04862061,3331.7,3331.6,0.5]
[1722264607873,11.04715061,3331.7,3331.6,0.5]
[1722264608708,10.04274277,3331.7,3331.6,0.5]
[1722264609019,3.00132,3331.9,3331.6,0.5]
[1722264609301,0.01,3332.0,3331.6,0.5]
[1722264609609,3.00147,3331.7,3331.6,0.5]
[1722264609757,6.00294,3331.7,3331.6,0.5]
[1722264609961,9.604704,3331.7,3331.6,0.5]
[1722264610164,10.64455654,3331.7,3331.6,0.5]
[1722264610559,10.64455654,3331.7,3330.1,9.7483]
[1722264610560,3.00265,3330.4,3330.1,7.29]
[1722264610758,3.00208,3331.1,3329.5,5.46172]
[1722264610759,3.00252,3330.6,3329.5,5.46173]
[1722264611004,3.0027,3330.4,3329.7,3.00324]
[1722264611167,3.0027,3330.4,3329.8,0.60066]
[1722264611369,3.00292,3330.1,3329.3,10.29356]
[1722264611662,3.00278,3330.3,3329.5,3.00339]
[1722264611863,3.00258,3330.5,3329.6,3.0033]
[1722264612061,5.3748,3331.1,3329.4,3.00347]
[1722264612062,3.00276,3330.3,3329.4,3.00347]
[1722264612367,3.00232,3330.8,3329.1,3.00378]
[1722264612368,3.00298,3330.1,3329.1,3.00378]
[1722264612592,3.00298,3330.1,3328.9,14.68026]
[1722264612593,3.00311,3329.9,3329.2,3.304098]
[1722264612905,3.00258,3330.5,3329.3,3.0]
[1722264613112,3.0023,3330.8,3330.0,3.00299]
[1722264613272,5.3748,3331.1,3329.4,0.3300378]
[1722264613273,2.3748,3331.1,3329.8,3.00309]
[1722264613606,2.3748,3331.1,3329.4,0.3300378]
[1722264613607,3.00224,3330.9,3329.5,3.00342]
[1722264613765,3.00228,3330.8,3330.0,3.00292]
[1722264613965,3.00186,3331.3,3330.3,3.00273]
[1722264614166,3.002,3331.2,3330.4,0.0600503]
[1722264614408,3.002,3331.2,3330.5,0.30627203]
[1722264614790,3.00191,3331.3,3330.5,3.30881203]
[1722264615100,3.00164,3331.6,3330.6,0.61004401]
[1722264615405,3.00188,3331.3,3330.6,0.55]
[1722264615564,2.3147,3332.1,3329.2,7.29]
[1722264615565,3.923,3331.6,3329.2,7.29]
[1722264615760,3.923,3331.6,3328.6,4.4927452]
[1722264615761,3.00288,3330.2,3328.6,4.4927452]
[1722264615961,1.03996288,3331.2,3328.2,2.403]
[1722264615962,1.04003051,3330.1,3328.2,2.403]
[1722264616166,3.00354,3329.4,3328.2,2.403]
[1722264616367,3.00336,3329.7,3328.3,0.06007852]
[1722264616368,3.00385,3329.1,3328.3,0.06007852]
[1722264616599,3.00364,3329.3,3328.2,5.4076]
[1722264616806,3.00373,3329.2,3328.2,5.4076]
[1722264617318,3.00329,3329.7,3328.2,2.403]
[1722264617614,1.04049272,3329.6,3328.3,0.06007847]
[1722264617769,3.00354,3329.4,3328.5,3.00432]
[1722264617971,3.0,3329.9,3328.6,0.06007395]
[1722264617972,3.0034,3329.6,3328.6,0.06007395]
[1722264618170,3.00349,3329.5,3328.6,3.06426395]
[1722264618408,3.00356,3329.4,3328.6,0.06007395]
[1722264618571,3.00356,3329.4,3328.7,0.55]
[1722264618767,3.00365,3329.3,3328.7,0.55]
[1722264619105,3.00328,3329.7,3328.8,0.06007395]
[1722264619410,3.00356,3329.4,3328.5,0.55]
[1722264619578,3.0037,3329.3,3328.5,0.55]
[1722264619790,3.00346,3329.5,3328.3,3.55]
[1722264620124,3.00394,3329.0,3328.4,0.5953]
[1722264620268,3.00407,3328.9,3327.7,2.4543]
[1722264620469,3.00381,3329.1,3327.7,5.45936]
[1722264620706,3.0036,3329.4,3327.7,2.4543]
[1722264620707,3.00461,3328.3,3327.7,2.4543]
[1722264620913,3.00471,3328.1,3327.8,1.36123]
[1722264621120,3.00471,3328.1,3327.6,3.0]
[1722264621270,3.00491,3327.9,3327.6,3.0]
[1722264621621,7.31,3329.3,3327.6,3.0]
[1722264621622,3.00402,3328.9,3327.6,3.0]
[1722264621909,3.00463,3328.2,3327.6,3.0]
[1722264622416,0.300402,3328.9,3327.6,3.0]
[1722264622725,3.00473,3328.1,3327.6,3.0]
[1722264622908,3.0049,3327.9,3327.6,3.0]
[1722264623071,6.00446,3328.4,3327.6,3.0]
[1722264623272,3.00454,3328.3,3327.6,3.0]
[1722264623586,3.00507,3327.7,3327.6,3.0]
[1722264623792,3.00502,3327.8,3327.6,3.0]
[1722264624300,3.00507,3327.7,3327.6,3.0]
[1722264624671,3.0049,3327.9,3327.6,3.0]
[1722264624872,3.00494,3327.9,3327.6,3.0]
[1722264625116,0.600966,3327.9,3327.0,7.29]
[1722264625375,3.00545,3327.3,3326.3,7.29]
[1722264625617,3.00553,3327.2,3326.2,3.00634]
[1722264625928,3.00527,3327.5,3325.8,3.00674]
[1722264625929,2.3738,3327.5,3325.8,3.00674]
[1722264626085,3.171,3328.0,3325.8,3.00674]
[1722264626086,3.0052,3327.6,3326.3,0.06011259]
[1722264626294,6.00532,3327.5,3326.4,3.00625]
[1722264626527,3.00509,3327.7,3326.6,3.00606]
[1722264626686,3.00544,3327.3,3326.5,3.37282396]
[1722264627049,2.3738,3328.1,3326.5,0.30663626]
[1722264627189,2.3738,3328.1,3326.3,3.00633]